[Event "CCT Final-RR 2024"]
[Site "Oslo"]
[Date "2024.12.18"]
[Round "6"]
[White "Carlsen, Magnus"]
[Black "Aronian, Levon"]
[Result "1-0"]
[ECO "B92"]
[WhiteElo "2831"]
[BlackElo "2747"]
[Annotator "TA"]
[PlyCount "133"]
[EventDate "2024.12.11"]
[EventType "tourn"]
[EventCountry "NOR"]
[SourceTitle "playchess.com"]
[Source "ChessBase"]
[SourceQuality "1"]
[TimeControl "600+2"]

{[%evp 52,133,185,171,194,185,174,176,188,167,171,128,181,155,214,205,211,220,404,392,398,410,398,404,404,399,387,377,442,442,400,143,145,145,145,167,197,139,196,217,222,226,226,206,170,219,196,170,218,210,222,212,210,201,214,229,293,292,300,230,483,483,458,365,358,135,5591,102,5612,4327,29970,29970,29972,29970,29978,29979,29979,29980,29980,29981,29980,29980,29980,29981]} 1. e4 {[%emt 0:00:01]} c5 {[%emt 0:00:01]} 2. Nf3 {[%emt 0:00:02]} d6 {[%emt 0:00:01]} 3. d4 {[%emt 0:00:02]} cxd4 {[%emt 0:00:01]} 4. Nxd4 {[%emt 0:00:03]} Nf6 {[%emt 0:00:01]} 5. Nc3 {[%emt 0:00:02]} a6 {[%emt 0:00:02]} 6. Be2 {[%emt 0:00:33]} e5 {[%emt 0:00:01]} 7. Nb3 {[%emt 0:00:01]} Be7 {[%emt 0:00:04]} 8. Bg5 {[%emt 0:00:36]} Be6 {[%emt 0:00:05]} 9. Bxf6 {[%emt 0:00:02]} Bxf6 {[%emt 0:00:02]} 10. Qd3 {[%emt 0:00:01]} O-O {[%emt 0:00:02]} 11. O-O-O {[%emt 0:00:08]} Be7 {[%emt 0:00:01]} 12. Nd5 {[%emt 0:00:04]} Bxd5 {[%emt 0:00:02]} 13. Qxd5 {[%emt 0:00:01]} Qb6 {[%emt 0:00:01]} 14. Rhf1 {[%emt 0:00:13]} Nd7 {[%emt 0:00:02]} 15. Nd2 {[%emt 0:00:32]} Bg5 {[%emt 0:00:40]} 16. Kb1 {[%emt 0:00:11]} Nf6 {[%emt 0:00:01]} 17. Qb3 {[%emt 0:00:01]} Qc7 {[%emt 0:01:28]} 18. Nc4 {[%emt 0:00:38]} b5 {[%emt 0:00:39]} 19. Nxd6 {[%emt 0:00:01]} Rad8 {[%emt 0:00:01]} 20. Qa3 {[%emt 0:00:18]} Qc6 {[%emt 0:00:47]} 21. f3 {[%emt 0:00:17]} g6 {[%emt 0:00:25]} 22. c4 {[%emt 0:00:05]} b4 {[%emt 0:00:04]} 23. Qxb4 {[%emt 0:00:01]} Be3 {[%emt 0:00:01]} 24. Nb7 {[%emt 0:01:16]} Rb8 {[%emt 0:00:32]} 25. Na5 {[%emt 0:00:02]} Qc7 {[%emt 0:00:01]} 26. Qa4 {[%emt 0:00:06]} Rb6 {[%emt 0:01:46]} 27. Nb3 {[%emt 0:00:18]} Bc5 {[%emt 0:00:29]} 28. Nxc5 {[%emt 0:00:51]} Qxc5 {[%emt 0:00:01]} 29. Rd2 {[%emt 0:00:03]} Rfb8 {[%emt 0:00:09]} 30. Rfd1 {[%emt 0:00:03]} Kg7 {[%emt 0:00:02]} 31. Rc2 {[%emt 0:00:39]} a5 {[%emt 0:00:12]} (31... Rb4 $16 32. Qxa6 R8b6) 32. a3 {[%emt 0:00:02]} h5 {[%emt 0:01:07]} (32... R6b7 $16 33. Rd3 Qg1+ 34. Ka2 Qc5) 33. h4 $18 {[%emt 0:00:07]} Rb3 {[%emt 0:00:50]} 34. Ka2 {[%emt 0:00:01]} Qb6 $2 {[%emt 0:00:25]} (34... R3b7 35. Rdd2 Rb6) 35. Rdd2 $18 {[%emt 0:00:08]} Nd7 {[%emt 0:00:08]} 36. Qxd7 {[%emt 0:00:24]} Rxa3+ {[%emt 0:00:02]} 37. Kb1 $1 {[%emt 0:00:01]} Qb3 {[%emt 0:00:14]} 38. Rd3 {[%emt 0:00:09]} Qa2+ {[%emt 0:00:16]} 39. Kc1 {[%emt 0:00:01]} Qa1+ {[%emt 0:00:01]} 40. Kd2 {[%emt 0:00:01]} Ra2 {[%emt 0:00:00]} 41. b3 $2 {[%emt 0:00:24]} (41. Ra3 $18) 41... a4 $16 {[%emt 0:00:01]} 42. Rxa2 $1 {[%emt 0:00:18]} Qxa2+ {[%emt 0:00:00]} 43. Ke3 {[%emt 0:00:01]} axb3 {[%emt 0:00:01]} 44. Qc7 {[%emt 0:00:11]} (44. Qe7 $18 b2 45. Qxe5+ Kh7 46. Rd7) 44... b2 $16 {[%emt 0:00:02]} 45. Qxe5+ {[%emt 0:00:07]} (45. Qxb8 b1=Q (45... b1=B $2 46. Qxe5+ Kh7 47. Rd8 $18) 46. Qxe5+ Kh7 $15) 45... Kh7 {[%emt 0:00:02]} 46. Rd7 $1 {[%emt 0:00:14]} Rf8 {[%emt 0:00:31]} (46... b1=R 47. Rxf7+ Kh6 48. Qg7#) 47. Bd3 {[%emt 0:00:01]} b1=Q {[%emt 0:00:02]} 48. Bxb1 {[%emt 0:00:02]} Qxb1 {[%emt 0:00:00] [#]} 49. Kf2 $1 {[%emt 0:01:39]} Qc2+ {[%emt 0:00:05]} (49... Qa2+ $142 50. Kg3 Qxc4) 50. Kg3 $18 {[%emt 0:00:01]} Qxc4 {[%emt 0:00:00]} 51. Qd5 {[%emt 0:00:01]} Qxd5 {[%emt 0:00:01]} 52. exd5 {[%emt 0:00:01]} (52. Rxd5 Ra8 $14) 52... Kg7 {[%emt 0:00:02]} 53. Kf4 {[%emt 0:00:01]} Re8 {[%emt 0:00:08]} 54. Ra7 {[%emt 0:00:13]} Re2 {[%emt 0:00:02]} 55. g4 {[%emt 0:00:01]} hxg4 $2 {[%emt 0:00:01]} (55... Rd2 {keeps fighting.} 56. Ke4 Rh2) 56. fxg4 $18 {[%emt 0:00:01]} Kf8 {[%emt 0:00:02]} 57. d6 {[%emt 0:00:10]} Ke8 {[%emt 0:00:02] [#]} 58. Kg5 $2 {[%emt 0:00:08]} (58. Ra4 $1 $18 {[%cal Ra4e4] is the precise move to win. White wants to mate with Re4+.} Kd7 59. Kg5) 58... Re4 $2 {[%emt 0:00:04][%mdl 8192]} (58... Rg2 $16) 59. Ra8+ $18 {[%emt 0:00:09]} Kd7 {[%emt 0:00:01]} 60. Rf8 {[%emt 0:00:01]} f5 {[%emt 0:00:02]} 61. gxf5 {[%emt 0:00:01]} (61. Kxg6 Rxg4+ 62. Kf6 (62. Kxf5 Rxh4 63. Ke5 Rh5+ 64. Rf5 Rxf5+ 65. Kxf5 Kxd6 $11) 62... Rxh4 $11) 61... gxf5 {[%emt 0:00:01]} 62. h5 {[%emt 0:00:02]} Kxd6 {[%emt 0:00:05]} 63. h6 $1 {[%emt 0:00:01]} (63. Rxf5 Ke6 $11) 63... Rg4+ {[%emt 0:00:02]} 64. Kh5 {[%emt 0:00:01]} Rg2 {[%emt 0:00:02]} 65. h7 {[%emt 0:00:01]} ({And not} 65. Rxf5 Ke6 66. Rf8 Rh2+ 67. Kg4 Rxh6 $11) 65... Rh2+ {[%emt 0:00:01]} 66. Kg6 {[%emt 0:00:01]} f4 {[%emt 0:00:02]} 67. h8=Q {[%emt 0:00:11]} 1-0

[Event "CCT Final-RR 2024"]
[Site "Oslo"]
[Date "2024.12.18"]
[Round "6"]
[White "Firouzja, Alireza"]
[Black "Vachier-Lagrave, Maxime"]
[Result "1-0"]
[ECO "A09"]
[WhiteElo "2763"]
[BlackElo "2731"]
[Annotator "TA"]
[PlyCount "43"]
[EventDate "2024.12.11"]
[EventType "tourn"]
[EventCountry "NOR"]
[SourceTitle "playchess.com"]
[Source "ChessBase"]
[SourceQuality "1"]
[TimeControl "600+2"]

{[%evp 9,43,-11,0,10,19,15,20,3,14,0,0,0,0,-16,18,25,64,65,68,86,83,88,210,216,204,187,445,166,773,771,770,788,778,782,1124,1120]} 1. Nf3 {[%emt 0:00:02]} d5 {[%emt 0:00:01]} 2. c4 {[%emt 0:00:01]} d4 {[%emt 0:00:01]} 3. b4 {[%emt 0:00:02]} g5 {[%emt 0:00:02]} 4. h3 {[%emt 0:00:12]} h6 {[%emt 0:00:06]} 5. d3 {[%emt 0:00:20]} Bg7 {[%emt 0:00:03]} 6. g3 {[%emt 0:00:04][%cal Bg2g3,Bg3g4,Bg4g5,Bg5h6][%mdl 32]} e5 {[%emt 0:00:06]} 7. Bg2 {[%emt 0:00:01]} Ne7 {[%emt 0:00:01]} 8. Nbd2 {[%emt 0:00:09]} O-O {[%emt 0:00:19]} 9. Qb3 {[%emt 0:00:16]} Be6 {[%emt 0:00:10]} 10. Ne4 {[%emt 0:01:09]} Nd7 {[%emt 0:00:03]} 11. g4 {[%emt 0:00:01]} Ng6 {[%emt 0:00:12] [#]} 12. h4 $1 {[%emt 0:00:25]} gxh4 {[%emt 0:01:46]} (12... f6 13. a4) 13. g5 {[%emt 0:00:02]} f5 {[%emt 0:00:13]} 14. gxh6 {[%emt 0:01:14]} fxe4 {[%emt 0:00:22]} 15. Ng5 {[%emt 0:00:21]} e3 {[%emt 0:02:21]} 16. Nxe6 $18 {[%emt 0:00:28]} Qf6 {[%emt 0:00:01]} (16... exf2+ $2 17. Kf1 Qe7 18. hxg7 $18 (18. Nxg7 Kh7 $18) (18. Nxf8 Bxf8 19. c5+ Kh8 $18)) 17. c5 {[%emt 0:00:59] Active counter play!} (17. Nxg7 $2 Qxf2+ (17... exf2+ $2 18. Kf1 $18) 18. Kd1 Qxg2 $19) 17... Qxf2+ {[%emt 0:00:47]} 18. Kd1 {[%emt 0:00:01]} Bxh6 $2 {[%emt 0:00:15]} (18... Kh7 19. Bxb7 (19. hxg7 Qxg2 20. gxf8=N+ Ndxf8 $11) 19... Bxh6) 19. Nxf8+ {[%emt 0:00:10]} (19. Be4 Kh7 20. c6 bxc6 21. Nxf8+ (21. Qc4 $2 Nf6 $17) 21... Rxf8 $19) 19... Kxf8 {[%emt 0:00:02]} 20. Rf1 {[%emt 0:00:07]} (20. Bxb7 $2 {too greedy.} Nf4 21. Re1 Re8 $19) 20... Qxf1+ {[%emt 0:00:22]} 21. Bxf1 {[%emt 0:00:01]} Ke7 {[%emt 0:00:00] Wards off Qe6+} 22. Bh3 {[%emt 0:00:14]} 1-0

[Event "CCT Final-RR 2024"]
[Site "Oslo"]
[Date "2024.12.18"]
[Round "6"]
[White "Nepomniachtchi, Ian"]
[Black "Keymer, Vincent"]
[Result "1-0"]
[ECO "C50"]
[WhiteElo "2755"]
[BlackElo "2733"]
[Annotator "TA"]
[PlyCount "127"]
[EventDate "2024.12.11"]
[EventType "tourn"]
[EventCountry "NOR"]
[SourceTitle "playchess.com"]
[Source "ChessBase"]
[SourceQuality "1"]
[TimeControl "600+2"]

{[%evp 45,127,5,0,0,58,57,57,68,62,66,63,71,58,10,14,12,14,12,19,8,12,0,0,0,34,8,8,8,55,48,55,32,25,8,14,14,14,8,9,8,49,51,52,8,8,8,74,31,56,8,8,8,31,8,10,8,8,0,0,0,0,0,184,184,184,184,336,336,1029,1029,1022,945,743,98,98,98,29967,29968,29977,29969,29978,29979,29979,29974]} 1. e4 {[%emt 0:00:01]} e5 {[%emt 0:00:00]} 2. Nf3 {[%emt 0:00:02]} Nc6 {[%emt 0:00:02]} 3. Bc4 {[%emt 0:00:01]} Nf6 {[%emt 0:00:01]} 4. d3 {[%emt 0:00:00]} Bc5 {[%emt 0:00:05]} 5. Nc3 {[%emt 0:00:02]} h6 {[%emt 0:00:01]} 6. a3 {[%emt 0:00:03]} d6 {[%emt 0:00:09]} 7. Na4 {[%emt 0:00:06]} Bb6 {[%emt 0:00:01]} 8. O-O {[%emt 0:00:09]} O-O {[%emt 0:00:06]} 9. h3 {[%emt 0:00:07]} Re8 {[%emt 0:00:20]} 10. Re1 {[%emt 0:00:01]} Nd4 {[%emt 0:00:55]} 11. Nxd4 {[%emt 0:01:09]} Bxd4 {[%emt 0:00:02]} 12. c3 {[%emt 0:00:02]} Bb6 {[%emt 0:00:04]} 13. Nxb6 {[%emt 0:00:22]} axb6 {[%emt 0:00:01]} 14. Bb3 {[%emt 0:00:01]} Be6 {[%emt 0:01:08]} 15. Bc2 {[%emt 0:00:01]} d5 {[%emt 0:00:01]} 16. Qf3 {[%emt 0:00:06]} dxe4 {[%emt 0:00:29]} 17. dxe4 {[%emt 0:00:01]} Nd7 {[%emt 0:00:01]} 18. Qg3 {[%emt 0:00:11]} Qf6 {[%emt 0:00:39]} 19. f4 {[%emt 0:00:10]} Nc5 {[%emt 0:00:34]} 20. fxe5 {[%emt 0:00:20]} Qg6 {[%emt 0:00:02]} 21. Qxg6 {[%emt 0:01:04]} fxg6 {[%emt 0:00:01]} 22. Be3 {[%emt 0:00:10]} Bb3 {[%emt 0:00:24]} 23. Bxb3+ {[%emt 0:00:34]} Nxb3 {[%emt 0:00:02]} 24. Rad1 {[%emt 0:00:00]} Rxe5 {[%emt 0:00:43]} (24... Re7 $11) 25. Rd7 $14 {[%emt 0:00:16]} Rxe4 {[%emt 0:00:59]} 26. Bf2 $1 {[%emt 0:00:01]} (26. Rxc7 Rae8 27. Rf1 Rxe3 $11) 26... Rxe1+ {[%emt 0:00:31]} 27. Bxe1 {[%emt 0:00:01]} Rc8 {[%emt 0:00:31]} 28. Bg3 {[%emt 0:00:13]} Nc5 {[%emt 0:00:04]} 29. Re7 {[%emt 0:00:07]} (29. Rxc7 $14 Rxc7 30. Bxc7) 29... Kf8 $1 $11 {[%emt 0:00:59]} 30. Rxc7 {[%emt 0:00:01]} Rxc7 {[%emt 0:00:02]} 31. Bxc7 {[%emt 0:00:01]} Nd3 $1 {[%emt 0:00:14]} 32. b3 {[%emt 0:01:19]} b5 {[%emt 0:00:01]} 33. Kf1 {[%emt 0:00:03]} Ke7 {[%emt 0:00:24]} 34. Bb6 {[%emt 0:00:06]} g5 {[%emt 0:00:09]} 35. Be3 {[%emt 0:00:09]} Ke6 {[%emt 0:00:34]} 36. Ke2 {[%emt 0:00:01]} Nf4+ {[%emt 0:00:22]} (36... Ne5 $11 {should be considered.}) 37. Kf3 $1 $14 {[%emt 0:00:01]} Nd5 {[%emt 0:00:02]} 38. Bd4 {[%emt 0:00:14]} g6 {[%emt 0:00:01]} 39. g3 {[%emt 0:00:25]} Ne7 {[%emt 0:00:02]} 40. Ke4 {[%emt 0:00:11]} Nc6 {[%emt 0:00:06]} 41. Bg7 {[%emt 0:00:33]} h5 {[%emt 0:00:03]} 42. Bh6 {[%emt 0:00:17]} g4 {[%emt 0:00:01]} 43. hxg4 {[%emt 0:00:09]} hxg4 {[%emt 0:00:01]} 44. a4 {[%emt 0:00:22]} bxa4 {[%emt 0:00:02]} 45. bxa4 {[%emt 0:00:01]} Ne5 {[%emt 0:00:17]} (45... Ne7 $11) 46. Bf4 {[%emt 0:00:07]} Nc6 $1 {[%emt 0:00:05]} 47. Be3 {[%emt 0:00:09]} (47. Bc7 $14) 47... Ne7 $1 $11 {[%emt 0:00:02]} 48. c4 {[%emt 0:00:25]} Nc6 {[%emt 0:00:01]} 49. Bf4 {[%emt 0:00:11]} Na5 {[%emt 0:00:05]} 50. Kd4 {[%emt 0:00:04]} Nb3+ $1 {[%emt 0:00:01]} 51. Kc3 {[%emt 0:00:02]} Nc5 {[%emt 0:00:01]} 52. a5 {[%emt 0:00:01]} g5 {[%emt 0:00:03]} 53. Bb8 {[%emt 0:00:05]} (53. Bxg5 $2 Ne4+ 54. Kd4 Nxg5 $19) 53... Na6 $2 {[%emt 0:00:07]} (53... Kd7 $11) 54. Ba7 $18 {[%emt 0:00:01]} Nc7 {[%emt 0:00:02]} 55. Kd4 {[%emt 0:00:07]} Ne8 $2 {[%emt 0:00:02]} (55... Na6 56. Bb6 Kd6) 56. Bb8 $18 {[%emt 0:00:02]} Ng7 $2 {[%emt 0:00:03]} (56... Kd7 57. Ke5 Kc8) 57. Kc5 $18 {[%emt 0:00:05]} Kd7 {[%emt 0:00:02]} 58. Be5 {[%emt 0:00:05]} Nf5 {[%emt 0:00:01] [#]} 59. Kb6 $2 {[%emt 0:00:02]} (59. Kb5 $1 $18 {is the precise move to win. and c5 would now be decisive} Ne3 60. c5) 59... Kc8 $16 {[%emt 0:00:03]} 60. c5 {[%emt 0:00:21]} Ne7 $2 {[%emt 0:00:00][%mdl 8192]} (60... Ne3 $16 61. Kb5 Nf1) 61. c6 {[%emt 0:00:29]} Nxc6 {[%emt 0:00:05] [#]} 62. a6 $1 {[%emt 0:00:01]} bxa6 {[%emt 0:00:03]} 63. Kxc6 {[%emt 0:00:01]} a5 {[%emt 0:00:03]} 64. Kb5 {[%emt 0:00:01]} 1-0

[Event "CCT Final-RR 2024"]
[Site "Oslo"]
[Date "2024.12.18"]
[Round "6"]
[White "Aronian, Levon"]
[Black "Carlsen, Magnus"]
[Result "1/2-1/2"]
[ECO "B40"]
[WhiteElo "2747"]
[BlackElo "2831"]
[Annotator "TA"]
[PlyCount "116"]
[EventDate "2024.12.11"]
[EventType "tourn"]
[EventCountry "NOR"]
[SourceTitle "playchess.com"]
[Source "ChessBase"]
[SourceQuality "1"]
[TimeControl "600+2"]

{[%evp 9,116,0,12,13,20,0,1,0,29,28,63,53,58,31,43,34,39,31,77,83,92,73,101,91,94,75,93,81,127,85,77,61,59,34,36,0,0,0,0,0,29,0,50,13,9,10,18,0,20,-21,347,116,130,74,68,0,35,12,269,-92,-92,-90,-96,-97,-87,-75,-79,-148,-152,-175,-173,-154,-79,-87,-70,-57,-34,-36,0,-2,0,-78,-81,-81,-66,-85,-85,-85,-85,-85,-85,-84,-84,-108,-108,-150,-150,-213,-197,-257,-168,-281,-220,-213,-206,-206,-206,-195,-180]} 1. e4 {[%emt 0:00:01]} c5 {[%emt 0:00:01]} 2. Nf3 {[%emt 0:00:01]} e6 {[%emt 0:00:01]} 3. d3 {[%emt 0:00:04]} Nc6 {[%emt 0:00:05]} 4. g3 {[%emt 0:00:01]} g6 {[%emt 0:00:02]} 5. Bg5 {[%emt 0:00:04]} f6 {[%emt 0:00:19]} 6. Be3 {[%emt 0:00:27]} d5 {[%emt 0:00:56]} 7. exd5 {[%emt 0:00:01]} exd5 {[%emt 0:00:01]} 8. d4 {[%emt 0:00:00]} c4 {[%emt 0:00:10]} 9. Bg2 {[%emt 0:00:05]} Bd6 {[%emt 0:00:05]} 10. O-O {[%emt 0:00:12]} Nge7 {[%emt 0:00:01]} 11. Bh6 {[%emt 0:00:11]} Nf5 {[%emt 0:00:28] Wards off Bg7} 12. Re1+ {[%emt 0:00:00]} Kf7 {[%emt 0:00:28]} 13. Bd2 {[%emt 0:01:25]} h5 {[%emt 0:01:24]} (13... Re8 $14 {is more appropriate.}) 14. Nc3 $16 {[%emt 0:00:07]} Nce7 {[%emt 0:00:02]} 15. b3 {[%emt 0:01:51]} cxb3 {[%emt 0:00:04]} 16. axb3 {[%emt 0:00:01]} Bd7 {[%emt 0:00:13]} 17. Qe2 {[%emt 0:00:37] White is more active.} a6 {[%emt 0:00:29]} 18. Na4 {[%emt 0:01:00][%cal Of3e5]} Rc8 {[%emt 0:00:03]} (18... Re8 $142) 19. c4 {[%emt 0:00:05][%cal Of3e5]} Re8 {[%emt 0:00:13]} 20. c5 {[%emt 0:00:13]} (20. Qd1 Nc6 21. Nc5 Rxe1+ 22. Bxe1 Bxc5 23. dxc5 d4 24. b4) 20... Bc7 {[%emt 0:00:27]} 21. Nc3 {[%emt 0:00:21]} Nc6 {[%emt 0:00:04][%csl LRd4,LRe2]} 22. Qd3 {[%emt 0:00:19]} Nb4 {[%emt 0:00:03]} 23. Rxe8 {[%emt 0:00:21]} Qxe8 {[%emt 0:00:32]} 24. Qb1 {[%emt 0:00:01]} Ne7 {[%emt 0:00:19]} 25. Nh4 {[%emt 0:00:33][%cal Oc3d5]} Be6 {[%emt 0:00:10]} (25... Kg7 $11) 26. Ne2 {[%emt 0:00:18]} Nbc6 {[%emt 0:00:03]} 27. b4 {[%emt 0:00:01]} Qd7 {[%emt 0:00:13]} 28. Be3 {[%emt 0:00:24]} Rh8 {[%emt 0:00:20]} 29. Nc3 {[%emt 0:00:13]} Bh3 $2 {[%emt 0:00:27][%mdl 8192] [#]} (29... g5 $11 30. Nf3 Kg7) 30. Bxd5+ $2 {[%emt 0:00:45]} Kg7 {[%emt 0:00:21] [#]} 31. Be4 {[%emt 0:00:21]} (31. Bxc6 $142 $1 bxc6 32. Rxa6) 31... Nxd4 {[%emt 0:00:12]} 32. Bxb7 {[%emt 0:00:17]} (32. Ra2 $14 Ndf5 33. Rd2 (33. Bxb7 Nxh4 34. gxh4 Be5 $17)) 32... Rb8 {[%emt 0:00:16]} (32... Be5 $5 33. Be4 (33. Bxa6 g5 $11) 33... Rd8 $11) 33. Be4 {[%emt 0:00:02] Some like it hot} Be5 $2 {[%emt 0:00:12][%mdl 8192]} (33... g5 $11 {and Black has nothing to worry.}) 34. Bxg6 $2 {[%emt 0:00:18] [#]} ({White must play} 34. Rxa6 $18 {[%cal Oe3d4] Bxd4! is the strong threat.} g5 35. f4 Ne2+ 36. Nxe2 Rxb4 37. Qc2 Rxe4 38. fxe5 (38. Qxe4 $2 Qd1+ 39. Kf2 Qf1#) 38... Rxe5 39. Bd4 gxh4 40. Bxe5 fxe5 41. Qe4 (41. gxh4 Qb7 $17)) 34... Ndc6 $1 $17 {[%emt 0:00:16][%csl LRb4,LRc3]} 35. Ra3 {[%emt 0:00:27]} (35. b5 $2 Bxc3 36. Rxa6 Rxb5 $19) 35... Rxb4 {[%emt 0:00:03]} 36. Qd3 {[%emt 0:00:01] [#]} Rxh4 $1 {[%emt 0:00:12]} 37. Qxd7 {[%emt 0:00:02]} Bxd7 {[%emt 0:00:02]} 38. gxh4 {[%emt 0:00:01]} (38. Be4 $142 Rg4 39. f3 Rxe4 40. Nxe4) 38... Kxg6 {[%emt 0:00:03]} 39. Ne4 {[%emt 0:00:03]} a5 {[%emt 0:00:03]} 40. Bd2 {[%emt 0:00:02]} Bd4 {[%emt 0:00:12]} (40... Nd4 $142 {Threatens to win with ...Bc6.} 41. Bxa5 Nef5) 41. Bxa5 {[%emt 0:00:02]} Nxa5 {[%emt 0:00:16]} 42. Rxa5 {[%emt 0:00:01]} Nc6 {[%emt 0:00:01] Prevents Ra7} 43. Ra6 $1 {[%emt 0:00:04]} Kf5 {[%emt 0:00:04][%mdl 1024] Black has compensation.} 44. Ng3+ {[%emt 0:00:02]} Kg6 {[%emt 0:00:06]} 45. Ne2 {[%emt 0:00:01]} (45. Ne4 $11 {remains equal.}) 45... Bxc5 {[%emt 0:00:05]} 46. Nf4+ {[%emt 0:00:00]} Kh6 {[%emt 0:00:10]} 47. Kg2 {[%emt 0:00:01]} Bd6 {[%emt 0:00:13]} 48. Nd5 {[%emt 0:00:02]} Kg6 {[%emt 0:00:03]} 49. f3 {[%emt 0:00:01]} Kf7 {[%emt 0:00:08]} 50. Nb6 {[%emt 0:00:02]} Be8 {[%emt 0:00:01]} 51. Nc4 {[%emt 0:00:01]} Bf4 {[%emt 0:00:05]} 52. Ra3 {[%emt 0:00:08]} Nd4 {[%emt 0:00:04]} 53. Ra5 {[%emt 0:00:03] Inhibits Nf5.} (53. Ne3 $17 {might work better.}) 53... Bc6 {[%emt 0:00:03]} 54. Kf2 {[%emt 0:00:02]} (54. Ra3 $142) 54... Bxf3 {[%emt 0:00:04][%cal Of7g6] A strong pair of Bishops.} 55. Ne3 {[%emt 0:00:02]} (55. Ra7+ $142 Ke6 56. Ra6+ Kf5 57. Ne3+ Ke4 58. Nf1) 55... Bxe3+ {[%emt 0:00:11]} 56. Kxe3 {[%emt 0:00:01]} Nc6 {[%emt 0:00:01]} 57. Rc5 {[%emt 0:00:02]} Ne5 {[%emt 0:00:01]} 58. Rc3 {[%emt 0:00:04]} Bd5 {[%emt 0:00:03]} 1/2-1/2

[Event "CCT Final-RR 2024"]
[Site "Oslo"]
[Date "2024.12.18"]
[Round "6"]
[White "So, Wesley"]
[Black "Lazavik, Denis"]
[Result "0-1"]
[ECO "B33"]
[WhiteElo "2747"]
[BlackElo "2578"]
[Annotator "TA"]
[PlyCount "96"]
[EventDate "2024.12.11"]
[EventType "tourn"]
[EventCountry "NOR"]
[SourceTitle "playchess.com"]
[Source "ChessBase"]
[SourceQuality "1"]
[TimeControl "600+2"]

{[%evp 31,96,-261,-266,-237,-33,-20,0,-86,-91,-100,-87,-116,-92,-136,-124,-302,-279,-377,-254,-220,-133,-391,-374,-447,-421,-524,-520,-525,-524,-543,-214,-483,-535,-554,-241,-208,-143,-1043,-1047,-912,-266,-539,-206,-646,-656,-649,-595,-736,-728,-1226,-1590,-1035,-1008,-1566,-1489,-29983,-29984,-29984,-29985,-29985,-29986,-29990,-29987,-29990,-29991,-29991,-29990]} 1. e4 {[%emt 0:00:01]} c5 {[%emt 0:00:03]} 2. Nf3 {[%emt 0:00:02]} Nc6 {[%emt 0:00:01]} 3. d4 {[%emt 0:00:03]} cxd4 {[%emt 0:00:02]} 4. Nxd4 {[%emt 0:00:00]} Nf6 {[%emt 0:00:01]} 5. Nc3 {[%emt 0:00:01]} e5 {[%emt 0:00:02]} 6. Ndb5 {[%emt 0:00:01]} d6 {[%emt 0:00:01]} 7. Nd5 {[%emt 0:00:01]} Nxd5 {[%emt 0:00:02]} 8. exd5 {[%emt 0:00:01]} Nb8 {[%emt 0:00:02]} 9. Qf3 {[%emt 0:00:14]} a6 {[%emt 0:00:15] B33: Sicilian: Pelikan and Sveshnikov Variations.} 10. Qa3 {[%emt 0:00:02]} Be7 {[%emt 0:00:03]} 11. Bd2 {[%emt 0:00:02]} O-O {[%emt 0:00:13]} 12. Bb4 {[%emt 0:00:41]} axb5 {[%emt 0:00:23]} 13. Qxa8 {[%emt 0:00:03]} Na6 {[%emt 0:00:06]} 14. Bd2 {[%emt 0:00:41]} Bg5 {[%emt 0:04:33]} 15. Bxg5 {[%emt 0:00:59]} Qxg5 {[%emt 0:00:01]} 16. Bxb5 $146 {[%emt 0:01:53]} (16. a3 $17 {keeps fighting.} Qg6) ({Predecessor:} 16. Qa7 Nb4 17. Kd1 Bg4+ 18. f3 Bf5 19. Rc1 Nxd5 20. Qf2 Ne3+ 21. Ke2 Nxc2 22. Rd1 Be6 23. b3 Ra8 {0-1 Lagerman,R (2361)-Alvarado Sepulveda,N (2281) Santo Domingo op 2005 (4)}) 16... Qxg2 {[%emt 0:01:31]} 17. O-O-O {[%emt 0:00:04]} Qxf2 $2 {[%emt 0:00:03]} (17... Bf5 $1 $19 18. Qxb7 Nc5) 18. Rd2 $1 $15 {[%emt 0:01:45]} Qf4 {[%emt 0:01:27]} 19. Rf1 {[%emt 0:00:59] [#]} (19. Bxa6 $1 $11 {keeps the balance.} bxa6 20. Qa7) 19... Qh6 $1 $17 {[%emt 0:00:05]} 20. Bxa6 {[%emt 0:00:08]} bxa6 {[%emt 0:00:01]} 21. Qa7 {[%emt 0:00:09]} f5 {[%emt 0:00:11]} 22. Rg1 {[%emt 0:00:12]} f4 {[%emt 0:00:17]} 23. Kb1 $2 {[%emt 0:00:15] [#]} (23. Rf2 $17) 23... e4 $1 $19 {[%emt 0:00:15]} 24. Rd4 {[%emt 0:00:15]} Bf5 {[%emt 0:00:10]} (24... Qxh2 25. Qxg7#) 25. Rb4 {[%emt 0:00:10]} e3 {[%emt 0:00:37]} (25... Qxh2 26. Qxg7#) 26. Rb7 $2 {[%emt 0:00:13][%mdl 8192]} (26. Rxf4 $17 {is the only way for White.} Bxc2+ 27. Kxc2 Rxf4 (27... Qxf4 28. Qxg7#) (27... Qxh2+ 28. Kb3 $15) 28. Qxe3) 26... g6 $19 {[%emt 0:00:11]} ({Not} 26... Qxh2 27. Rbxg7+ Kh8 28. Rg8+ (28. Qxa6 $2 Qxc2+ 29. Ka1 e2 $19) 28... Rxg8 29. Qd4+) 27. Re7 {[%emt 0:00:50]} Qxh2 {[%emt 0:00:12]} 28. Rc1 {[%emt 0:00:01]} Qh6 {[%emt 0:00:02]} 29. a4 {[%emt 0:00:03]} g5 {[%emt 0:00:03]} 30. Qxa6 {[%emt 0:00:09]} Qf6 $2 {[%emt 0:00:02]} (30... g4 31. Qb6 Qf6) 31. Qa7 $2 {[%emt 0:00:13]} (31. Qb7) 31... g4 $19 {[%emt 0:00:04]} 32. Rf1 {[%emt 0:00:13]} Bg6 {[%emt 0:00:02]} (32... g3 $142 33. Rg1 Qg6) 33. Rxe3 $19 {[%emt 0:00:18]} f3 {[%emt 0:00:01]} 34. Rg1 $2 {[%emt 0:00:14][%mdl 8192]} (34. a5 $17) 34... f2 {[%emt 0:00:02]} 35. Rf1 {[%emt 0:00:01]} Rf7 $2 {[%emt 0:00:03]} (35... Qf4 {[%cal Og6c2]} 36. Rc3 g3 37. Rxg3 Qxg3) 36. Qb6 $2 {[%emt 0:00:09]} (36. Qb8+ Rf8 37. Qb4) 36... Kg7 $2 {[%emt 0:00:02]} (36... Qf4 {[%cal Og4g3] aiming for ...g3!} 37. Re8+ Kg7) 37. a5 $2 {[%emt 0:00:01]} (37. Qb4 h5 38. a5) 37... Qf4 $19 {[%emt 0:00:03]} 38. Qb3 {[%emt 0:00:04]} h5 {[%emt 0:00:02]} 39. Qc3+ {[%emt 0:00:03]} Kh6 {[%emt 0:00:01]} 40. Re6 {[%emt 0:00:03]} g3 {[%emt 0:00:02]} 41. Qh8+ {[%emt 0:00:01]} Kg5 {[%emt 0:00:01]} 42. Qd8+ {[%emt 0:00:01]} Rf6 {[%emt 0:00:01]} 43. Rd1 {[%emt 0:00:06]} f1=R {[%emt 0:00:02]} ({Stronger than} 43... f1=B 44. Qxf6+ Qxf6 45. Rxf6 $16) 44. Rxf1 {[%emt 0:00:01]} Qxf1+ {[%emt 0:00:01]} 45. Ka2 {[%emt 0:00:01]} g2 {[%emt 0:00:01]} 46. Qxd6 {[%emt 0:00:03]} Rxe6 {[%emt 0:00:03]} ({And not} 46... g1=B 47. Qg3+ Kh6 48. Rxf6 Qxf6 49. Qxg1 $15) 47. dxe6 {[%emt 0:00:02]} g1=Q {[%emt 0:00:01]} 48. Qe5+ {[%emt 0:00:02]} Qf5 {[%emt 0:00:02]} 0-1